{"text_format":"1","workbook":"xlsx","n_sheets":1,"sheets":["ورقة1"],"not_rendered":{"charts":0,"images":0,"macros":0,"external_links":0,"defined_names":0,"comments":0,"pivot_tables":0},"unopened":[],"bounds":{"document_bytes":16777216,"sheet_cells":100000,"rows_first":2000,"rows_last":500,"rows_between":2000,"halvings":0,"cell_chars":16384,"cell_head_chars":4096},"cells_cut":0,"cells_raw":0,"read":"whole","date_system":"1900"}

{"sheet":"ورقة1","index":0,"n_rows":100,"n_cols":18,"rows_kept":100,"cut":false,"hidden":false,"merged":[]}
[]
[null,null,null,null,"دليل المكاتب الإصدار الثاني",null,null,null,null,null,null,null,null,null,null,{"$f":"IF(ISNUMBER(SEARCH($E$2,Q2)),MAX($P$1:P1)+1,0)","v":0},"اجراءتفعيل البطاقات من خلال الرسائل وخدمة العملاء",{"$f":"IFERROR(VLOOKUP(ROWS($R$3:R3),$P$2:$Q$100,2,0),\"\")","v":"دليل المكاتب الإصدار الثاني"}]
[null,null,null,null,{"$f":"E4&\"\\\"&E2&\".pdf\"","v":"D:\\منشورات\\دليل المكاتب الإصدار الثاني.pdf"},null,null,null,null,null,null,null,null,null,null,{"$f":"IF(ISNUMBER(SEARCH($E$2,Q3)),MAX($P$1:P2)+1,0)","v":0},"مدفوعة مواطن",{"$f":"IFERROR(VLOOKUP(ROWS($R$3:R4),$P$2:$Q$100,2,0),\"\")","v":""}]
[null,null,null,null,"D:\\منشورات",null,null,null,null,null,null,null,null,null,null,{"$f":"IF(ISNUMBER(SEARCH($E$2,Q4)),MAX($P$1:P3)+1,0)","v":0},"نسبة التوفير",{"$f":"IFERROR(VLOOKUP(ROWS($R$3:R5),$P$2:$Q$100,2,0),\"\")","v":""}]
[null,null,null,null,{"$f":"HYPERLINK(E3,\"open\")","v":"open"},null,null,null,null,null,null,null,null,null,null,{"$f":"IF(ISNUMBER(SEARCH($E$2,Q5)),MAX($P$1:P4)+1,0)","v":0},"نموذج الاقفال  يدوي اليومي (1)",{"$f":"IFERROR(VLOOKUP(ROWS($R$3:R6),$P$2:$Q$100,2,0),\"\")","v":""}]
[null,null,null,null,null,null,null,null,null,null,null,null,null,null,null,{"$f":"IF(ISNUMBER(SEARCH($E$2,Q6)),MAX($P$1:P5)+1,0)","v":1},"دليل المكاتب الإصدار الثاني",{"$f":"IFERROR(VLOOKUP(ROWS($R$3:R7),$P$2:$Q$100,2,0),\"\")","v":""}]
[null,null,null,null,null,null,null,null,null,null,null,null,null,null,null,{"$f":"IF(ISNUMBER(SEARCH($E$2,Q7)),MAX($P$1:P6)+1,0)","v":0},null,{"$f":"IFERROR(VLOOKUP(ROWS($R$3:R8),$P$2:$Q$100,2,0),\"\")","v":""}]
[null,null,null,null,null,null,null,null,null,null,null,null,null,null,null,{"$f":"IF(ISNUMBER(SEARCH($E$2,Q8)),MAX($P$1:P7)+1,0)","v":0},null,{"$f":"IFERROR(VLOOKUP(ROWS($R$3:R9),$P$2:$Q$100,2,0),\"\")","v":""}]
[null,null,null,null,null,null,null,null,null,null,null,null,null,null,null,{"$f":"IF(ISNUMBER(SEARCH($E$2,Q9)),MAX($P$1:P8)+1,0)","v":0},null,{"$f":"IFERROR(VLOOKUP(ROWS($R$3:R10),$P$2:$Q$100,2,0),\"\")","v":""}]
[null,null,null,null,null,null,null,null,null,null,null,null,null,null,null,{"$f":"IF(ISNUMBER(SEARCH($E$2,Q10)),MAX($P$1:P9)+1,0)","v":0},null,{"$f":"IFERROR(VLOOKUP(ROWS($R$3:R11),$P$2:$Q$100,2,0),\"\")","v":""}]
[null,null,null,null,null,null,null,null,null,null,null,null,null,null,null,{"$f":"IF(ISNUMBER(SEARCH($E$2,Q11)),MAX($P$1:P10)+1,0)","v":0},null,{"$f":"IFERROR(VLOOKUP(ROWS($R$3:R12),$P$2:$Q$100,2,0),\"\")","v":""}]
[null,null,null,null,null,null,null,null,null,null,null,null,null,null,null,{"$f":"IF(ISNUMBER(SEARCH($E$2,Q12)),MAX($P$1:P11)+1,0)","v":0},null,{"$f":"IFERROR(VLOOKUP(ROWS($R$3:R13),$P$2:$Q$100,2,0),\"\")","v":""}]
[null,null,null,null,"المطلوب جعل الخليةe1   خلية بحث سواء بأول الكلمة اوجزء منهاوذلك من العمودq  وفى نفس الوقت تكون قائمة منسدلة",null,null,null,null,null,null,null,null,null,null,{"$f":"IF(ISNUMBER(SEARCH($E$2,Q13)),MAX($P$1:P12)+1,0)","v":0},null,{"$f":"IFERROR(VLOOKUP(ROWS($R$3:R14),$P$2:$Q$100,2,0),\"\")","v":""}]
[null,null,null,null,null,null,null,null,null,null,null,null,null,null,null,{"$f":"IF(ISNUMBER(SEARCH($E$2,Q14)),MAX($P$1:P13)+1,0)","v":0},null,{"$f":"IFERROR(VLOOKUP(ROWS($R$3:R15),$P$2:$Q$100,2,0),\"\")","v":""}]
[null,null,null,null,null,null,null,null,null,null,null,null,null,null,null,{"$f":"IF(ISNUMBER(SEARCH($E$2,Q15)),MAX($P$1:P14)+1,0)","v":0},null,{"$f":"IFERROR(VLOOKUP(ROWS($R$3:R16),$P$2:$Q$100,2,0),\"\")","v":""}]
[null,null,null,null,null,null,null,null,null,null,null,null,null,null,null,{"$f":"IF(ISNUMBER(SEARCH($E$2,Q16)),MAX($P$1:P15)+1,0)","v":0},null,{"$f":"IFERROR(VLOOKUP(ROWS($R$3:R17),$P$2:$Q$100,2,0),\"\")","v":""}]
[null,null,null,null,null,null,null,null,null,null,null,null,null,null,null,{"$f":"IF(ISNUMBER(SEARCH($E$2,Q17)),MAX($P$1:P16)+1,0)","v":0},null,{"$f":"IFERROR(VLOOKUP(ROWS($R$3:R18),$P$2:$Q$100,2,0),\"\")","v":""}]
[null,null,null,null,null,null,null,null,null,null,null,null,null,null,null,{"$f":"IF(ISNUMBER(SEARCH($E$2,Q18)),MAX($P$1:P17)+1,0)","v":0},null,{"$f":"IFERROR(VLOOKUP(ROWS($R$3:R19),$P$2:$Q$100,2,0),\"\")","v":""}]
[null,null,null,null,null,null,null,null,null,null,null,null,null,null,null,{"$f":"IF(ISNUMBER(SEARCH($E$2,Q19)),MAX($P$1:P18)+1,0)","v":0},null,{"$f":"IFERROR(VLOOKUP(ROWS($R$3:R20),$P$2:$Q$100,2,0),\"\")","v":""}]
[null,null,null,null,null,null,null,null,null,null,null,null,null,null,null,{"$f":"IF(ISNUMBER(SEARCH($E$2,Q20)),MAX($P$1:P19)+1,0)","v":0},null,{"$f":"IFERROR(VLOOKUP(ROWS($R$3:R21),$P$2:$Q$100,2,0),\"\")","v":""}]
[null,null,null,null,null,null,null,null,null,null,null,null,null,null,null,{"$f":"IF(ISNUMBER(SEARCH($E$2,Q21)),MAX($P$1:P20)+1,0)","v":0},null,{"$f":"IFERROR(VLOOKUP(ROWS($R$3:R22),$P$2:$Q$100,2,0),\"\")","v":""}]
[null,null,null,null,null,null,null,null,null,null,null,null,null,null,null,{"$f":"IF(ISNUMBER(SEARCH($E$2,Q22)),MAX($P$1:P21)+1,0)","v":0},null,{"$f":"IFERROR(VLOOKUP(ROWS($R$3:R23),$P$2:$Q$100,2,0),\"\")","v":""}]
[null,null,null,null,null,null,null,null,null,null,null,null,null,null,null,{"$f":"IF(ISNUMBER(SEARCH($E$2,Q23)),MAX($P$1:P22)+1,0)","v":0},null,{"$f":"IFERROR(VLOOKUP(ROWS($R$3:R24),$P$2:$Q$100,2,0),\"\")","v":""}]
[null,null,null,null,null,null,null,null,null,null,null,null,null,null,null,{"$f":"IF(ISNUMBER(SEARCH($E$2,Q24)),MAX($P$1:P23)+1,0)","v":0},null,{"$f":"IFERROR(VLOOKUP(ROWS($R$3:R25),$P$2:$Q$100,2,0),\"\")","v":""}]
[null,null,null,null,null,null,null,null,null,null,null,null,null,null,null,{"$f":"IF(ISNUMBER(SEARCH($E$2,Q25)),MAX($P$1:P24)+1,0)","v":0},null,{"$f":"IFERROR(VLOOKUP(ROWS($R$3:R26),$P$2:$Q$100,2,0),\"\")","v":""}]
[null,null,null,null,null,null,null,null,null,null,null,null,null,null,null,{"$f":"IF(ISNUMBER(SEARCH($E$2,Q26)),MAX($P$1:P25)+1,0)","v":0},null,{"$f":"IFERROR(VLOOKUP(ROWS($R$3:R27),$P$2:$Q$100,2,0),\"\")","v":""}]
[null,null,null,null,null,null,null,null,null,null,null,null,null,null,null,{"$f":"IF(ISNUMBER(SEARCH($E$2,Q27)),MAX($P$1:P26)+1,0)","v":0},null,{"$f":"IFERROR(VLOOKUP(ROWS($R$3:R28),$P$2:$Q$100,2,0),\"\")","v":""}]
[null,null,null,null,null,null,null,null,null,null,null,null,null,null,null,{"$f":"IF(ISNUMBER(SEARCH($E$2,Q28)),MAX($P$1:P27)+1,0)","v":0},null,{"$f":"IFERROR(VLOOKUP(ROWS($R$3:R29),$P$2:$Q$100,2,0),\"\")","v":""}]
[null,null,null,null,null,null,null,null,null,null,null,null,null,null,null,{"$f":"IF(ISNUMBER(SEARCH($E$2,Q29)),MAX($P$1:P28)+1,0)","v":0},null,{"$f":"IFERROR(VLOOKUP(ROWS($R$3:R30),$P$2:$Q$100,2,0),\"\")","v":""}]
[null,null,null,null,null,null,null,null,null,null,null,null,null,null,null,{"$f":"IF(ISNUMBER(SEARCH($E$2,Q30)),MAX($P$1:P29)+1,0)","v":0},null,{"$f":"IFERROR(VLOOKUP(ROWS($R$3:R31),$P$2:$Q$100,2,0),\"\")","v":""}]
[null,null,null,null,null,null,null,null,null,null,null,null,null,null,null,{"$f":"IF(ISNUMBER(SEARCH($E$2,Q31)),MAX($P$1:P30)+1,0)","v":0},null,{"$f":"IFERROR(VLOOKUP(ROWS($R$3:R32),$P$2:$Q$100,2,0),\"\")","v":""}]
[null,null,null,null,null,null,null,null,null,null,null,null,null,null,null,{"$f":"IF(ISNUMBER(SEARCH($E$2,Q32)),MAX($P$1:P31)+1,0)","v":0},null,{"$f":"IFERROR(VLOOKUP(ROWS($R$3:R33),$P$2:$Q$100,2,0),\"\")","v":""}]
[null,null,null,null,null,null,null,null,null,null,null,null,null,null,null,{"$f":"IF(ISNUMBER(SEARCH($E$2,Q33)),MAX($P$1:P32)+1,0)","v":0},null,{"$f":"IFERROR(VLOOKUP(ROWS($R$3:R34),$P$2:$Q$100,2,0),\"\")","v":""}]
[null,null,null,null,null,null,null,null,null,null,null,null,null,null,null,{"$f":"IF(ISNUMBER(SEARCH($E$2,Q34)),MAX($P$1:P33)+1,0)","v":0},null,{"$f":"IFERROR(VLOOKUP(ROWS($R$3:R35),$P$2:$Q$100,2,0),\"\")","v":""}]
[null,null,null,null,null,null,null,null,null,null,null,null,null,null,null,{"$f":"IF(ISNUMBER(SEARCH($E$2,Q35)),MAX($P$1:P34)+1,0)","v":0},null,{"$f":"IFERROR(VLOOKUP(ROWS($R$3:R36),$P$2:$Q$100,2,0),\"\")","v":""}]
[null,null,null,null,null,null,null,null,null,null,null,null,null,null,null,{"$f":"IF(ISNUMBER(SEARCH($E$2,Q36)),MAX($P$1:P35)+1,0)","v":0},null,{"$f":"IFERROR(VLOOKUP(ROWS($R$3:R37),$P$2:$Q$100,2,0),\"\")","v":""}]
[null,null,null,null,null,null,null,null,null,null,null,null,null,null,null,{"$f":"IF(ISNUMBER(SEARCH($E$2,Q37)),MAX($P$1:P36)+1,0)","v":0},null,{"$f":"IFERROR(VLOOKUP(ROWS($R$3:R38),$P$2:$Q$100,2,0),\"\")","v":""}]
[null,null,null,null,null,null,null,null,null,null,null,null,null,null,null,{"$f":"IF(ISNUMBER(SEARCH($E$2,Q38)),MAX($P$1:P37)+1,0)","v":0},null,{"$f":"IFERROR(VLOOKUP(ROWS($R$3:R39),$P$2:$Q$100,2,0),\"\")","v":""}]
[null,null,null,null,null,null,null,null,null,null,null,null,null,null,null,{"$f":"IF(ISNUMBER(SEARCH($E$2,Q39)),MAX($P$1:P38)+1,0)","v":0},null,{"$f":"IFERROR(VLOOKUP(ROWS($R$3:R40),$P$2:$Q$100,2,0),\"\")","v":""}]
[null,null,null,null,null,null,null,null,null,null,null,null,null,null,null,{"$f":"IF(ISNUMBER(SEARCH($E$2,Q40)),MAX($P$1:P39)+1,0)","v":0},null,{"$f":"IFERROR(VLOOKUP(ROWS($R$3:R41),$P$2:$Q$100,2,0),\"\")","v":""}]
[null,null,null,null,null,null,null,null,null,null,null,null,null,null,null,{"$f":"IF(ISNUMBER(SEARCH($E$2,Q41)),MAX($P$1:P40)+1,0)","v":0},null,{"$f":"IFERROR(VLOOKUP(ROWS($R$3:R42),$P$2:$Q$100,2,0),\"\")","v":""}]
[null,null,null,null,null,null,null,null,null,null,null,null,null,null,null,{"$f":"IF(ISNUMBER(SEARCH($E$2,Q42)),MAX($P$1:P41)+1,0)","v":0},null,{"$f":"IFERROR(VLOOKUP(ROWS($R$3:R43),$P$2:$Q$100,2,0),\"\")","v":""}]
[null,null,null,null,null,null,null,null,null,null,null,null,null,null,null,{"$f":"IF(ISNUMBER(SEARCH($E$2,Q43)),MAX($P$1:P42)+1,0)","v":0},null,{"$f":"IFERROR(VLOOKUP(ROWS($R$3:R44),$P$2:$Q$100,2,0),\"\")","v":""}]
[null,null,null,null,null,null,null,null,null,null,null,null,null,null,null,{"$f":"IF(ISNUMBER(SEARCH($E$2,Q44)),MAX($P$1:P43)+1,0)","v":0},null,{"$f":"IFERROR(VLOOKUP(ROWS($R$3:R45),$P$2:$Q$100,2,0),\"\")","v":""}]
[null,null,null,null,null,null,null,null,null,null,null,null,null,null,null,{"$f":"IF(ISNUMBER(SEARCH($E$2,Q45)),MAX($P$1:P44)+1,0)","v":0},null,{"$f":"IFERROR(VLOOKUP(ROWS($R$3:R46),$P$2:$Q$100,2,0),\"\")","v":""}]
[null,null,null,null,null,null,null,null,null,null,null,null,null,null,null,{"$f":"IF(ISNUMBER(SEARCH($E$2,Q46)),MAX($P$1:P45)+1,0)","v":0},null,{"$f":"IFERROR(VLOOKUP(ROWS($R$3:R47),$P$2:$Q$100,2,0),\"\")","v":""}]
[null,null,null,null,null,null,null,null,null,null,null,null,null,null,null,{"$f":"IF(ISNUMBER(SEARCH($E$2,Q47)),MAX($P$1:P46)+1,0)","v":0},null,{"$f":"IFERROR(VLOOKUP(ROWS($R$3:R48),$P$2:$Q$100,2,0),\"\")","v":""}]
[null,null,null,null,null,null,null,null,null,null,null,null,null,null,null,{"$f":"IF(ISNUMBER(SEARCH($E$2,Q48)),MAX($P$1:P47)+1,0)","v":0},null,{"$f":"IFERROR(VLOOKUP(ROWS($R$3:R49),$P$2:$Q$100,2,0),\"\")","v":""}]
[null,null,null,null,null,null,null,null,null,null,null,null,null,null,null,{"$f":"IF(ISNUMBER(SEARCH($E$2,Q49)),MAX($P$1:P48)+1,0)","v":0},null,{"$f":"IFERROR(VLOOKUP(ROWS($R$3:R50),$P$2:$Q$100,2,0),\"\")","v":""}]
[null,null,null,null,null,null,null,null,null,null,null,null,null,null,null,{"$f":"IF(ISNUMBER(SEARCH($E$2,Q50)),MAX($P$1:P49)+1,0)","v":0},null,{"$f":"IFERROR(VLOOKUP(ROWS($R$3:R51),$P$2:$Q$100,2,0),\"\")","v":""}]
[null,null,null,null,null,null,null,null,null,null,null,null,null,null,null,{"$f":"IF(ISNUMBER(SEARCH($E$2,Q51)),MAX($P$1:P50)+1,0)","v":0},null,{"$f":"IFERROR(VLOOKUP(ROWS($R$3:R52),$P$2:$Q$100,2,0),\"\")","v":""}]
[null,null,null,null,null,null,null,null,null,null,null,null,null,null,null,{"$f":"IF(ISNUMBER(SEARCH($E$2,Q52)),MAX($P$1:P51)+1,0)","v":0},null,{"$f":"IFERROR(VLOOKUP(ROWS($R$3:R53),$P$2:$Q$100,2,0),\"\")","v":""}]
[null,null,null,null,null,null,null,null,null,null,null,null,null,null,null,{"$f":"IF(ISNUMBER(SEARCH($E$2,Q53)),MAX($P$1:P52)+1,0)","v":0},null,{"$f":"IFERROR(VLOOKUP(ROWS($R$3:R54),$P$2:$Q$100,2,0),\"\")","v":""}]
[null,null,null,null,null,null,null,null,null,null,null,null,null,null,null,{"$f":"IF(ISNUMBER(SEARCH($E$2,Q54)),MAX($P$1:P53)+1,0)","v":0},null,{"$f":"IFERROR(VLOOKUP(ROWS($R$3:R55),$P$2:$Q$100,2,0),\"\")","v":""}]
[null,null,null,null,null,null,null,null,null,null,null,null,null,null,null,{"$f":"IF(ISNUMBER(SEARCH($E$2,Q55)),MAX($P$1:P54)+1,0)","v":0},null,{"$f":"IFERROR(VLOOKUP(ROWS($R$3:R56),$P$2:$Q$100,2,0),\"\")","v":""}]
[null,null,null,null,null,null,null,null,null,null,null,null,null,null,null,{"$f":"IF(ISNUMBER(SEARCH($E$2,Q56)),MAX($P$1:P55)+1,0)","v":0},null,{"$f":"IFERROR(VLOOKUP(ROWS($R$3:R57),$P$2:$Q$100,2,0),\"\")","v":""}]
[null,null,null,null,null,null,null,null,null,null,null,null,null,null,null,{"$f":"IF(ISNUMBER(SEARCH($E$2,Q57)),MAX($P$1:P56)+1,0)","v":0},null,{"$f":"IFERROR(VLOOKUP(ROWS($R$3:R58),$P$2:$Q$100,2,0),\"\")","v":""}]
[null,null,null,null,null,null,null,null,null,null,null,null,null,null,null,{"$f":"IF(ISNUMBER(SEARCH($E$2,Q58)),MAX($P$1:P57)+1,0)","v":0},null,{"$f":"IFERROR(VLOOKUP(ROWS($R$3:R59),$P$2:$Q$100,2,0),\"\")","v":""}]
[null,null,null,null,null,null,null,null,null,null,null,null,null,null,null,{"$f":"IF(ISNUMBER(SEARCH($E$2,Q59)),MAX($P$1:P58)+1,0)","v":0},null,{"$f":"IFERROR(VLOOKUP(ROWS($R$3:R60),$P$2:$Q$100,2,0),\"\")","v":""}]
[null,null,null,null,null,null,null,null,null,null,null,null,null,null,null,{"$f":"IF(ISNUMBER(SEARCH($E$2,Q60)),MAX($P$1:P59)+1,0)","v":0},null,{"$f":"IFERROR(VLOOKUP(ROWS($R$3:R61),$P$2:$Q$100,2,0),\"\")","v":""}]
[null,null,null,null,null,null,null,null,null,null,null,null,null,null,null,{"$f":"IF(ISNUMBER(SEARCH($E$2,Q61)),MAX($P$1:P60)+1,0)","v":0},null,{"$f":"IFERROR(VLOOKUP(ROWS($R$3:R62),$P$2:$Q$100,2,0),\"\")","v":""}]
[null,null,null,null,null,null,null,null,null,null,null,null,null,null,null,{"$f":"IF(ISNUMBER(SEARCH($E$2,Q62)),MAX($P$1:P61)+1,0)","v":0},null,{"$f":"IFERROR(VLOOKUP(ROWS($R$3:R63),$P$2:$Q$100,2,0),\"\")","v":""}]
[null,null,null,null,null,null,null,null,null,null,null,null,null,null,null,{"$f":"IF(ISNUMBER(SEARCH($E$2,Q63)),MAX($P$1:P62)+1,0)","v":0},null,{"$f":"IFERROR(VLOOKUP(ROWS($R$3:R64),$P$2:$Q$100,2,0),\"\")","v":""}]
[null,null,null,null,null,null,null,null,null,null,null,null,null,null,null,{"$f":"IF(ISNUMBER(SEARCH($E$2,Q64)),MAX($P$1:P63)+1,0)","v":0},null,{"$f":"IFERROR(VLOOKUP(ROWS($R$3:R65),$P$2:$Q$100,2,0),\"\")","v":""}]
[null,null,null,null,null,null,null,null,null,null,null,null,null,null,null,{"$f":"IF(ISNUMBER(SEARCH($E$2,Q65)),MAX($P$1:P64)+1,0)","v":0},null,{"$f":"IFERROR(VLOOKUP(ROWS($R$3:R66),$P$2:$Q$100,2,0),\"\")","v":""}]
[null,null,null,null,null,null,null,null,null,null,null,null,null,null,null,{"$f":"IF(ISNUMBER(SEARCH($E$2,Q66)),MAX($P$1:P65)+1,0)","v":0},null,{"$f":"IFERROR(VLOOKUP(ROWS($R$3:R67),$P$2:$Q$100,2,0),\"\")","v":""}]
[null,null,null,null,null,null,null,null,null,null,null,null,null,null,null,{"$f":"IF(ISNUMBER(SEARCH($E$2,Q67)),MAX($P$1:P66)+1,0)","v":0},null,{"$f":"IFERROR(VLOOKUP(ROWS($R$3:R68),$P$2:$Q$100,2,0),\"\")","v":""}]
[null,null,null,null,null,null,null,null,null,null,null,null,null,null,null,{"$f":"IF(ISNUMBER(SEARCH($E$2,Q68)),MAX($P$1:P67)+1,0)","v":0},null,{"$f":"IFERROR(VLOOKUP(ROWS($R$3:R69),$P$2:$Q$100,2,0),\"\")","v":""}]
[null,null,null,null,null,null,null,null,null,null,null,null,null,null,null,{"$f":"IF(ISNUMBER(SEARCH($E$2,Q69)),MAX($P$1:P68)+1,0)","v":0},null,{"$f":"IFERROR(VLOOKUP(ROWS($R$3:R70),$P$2:$Q$100,2,0),\"\")","v":""}]
[null,null,null,null,null,null,null,null,null,null,null,null,null,null,null,{"$f":"IF(ISNUMBER(SEARCH($E$2,Q70)),MAX($P$1:P69)+1,0)","v":0},null,{"$f":"IFERROR(VLOOKUP(ROWS($R$3:R71),$P$2:$Q$100,2,0),\"\")","v":""}]
[null,null,null,null,null,null,null,null,null,null,null,null,null,null,null,{"$f":"IF(ISNUMBER(SEARCH($E$2,Q71)),MAX($P$1:P70)+1,0)","v":0},null,{"$f":"IFERROR(VLOOKUP(ROWS($R$3:R72),$P$2:$Q$100,2,0),\"\")","v":""}]
[null,null,null,null,null,null,null,null,null,null,null,null,null,null,null,{"$f":"IF(ISNUMBER(SEARCH($E$2,Q72)),MAX($P$1:P71)+1,0)","v":0},null,{"$f":"IFERROR(VLOOKUP(ROWS($R$3:R73),$P$2:$Q$100,2,0),\"\")","v":""}]
[null,null,null,null,null,null,null,null,null,null,null,null,null,null,null,{"$f":"IF(ISNUMBER(SEARCH($E$2,Q73)),MAX($P$1:P72)+1,0)","v":0},null,{"$f":"IFERROR(VLOOKUP(ROWS($R$3:R74),$P$2:$Q$100,2,0),\"\")","v":""}]
[null,null,null,null,null,null,null,null,null,null,null,null,null,null,null,{"$f":"IF(ISNUMBER(SEARCH($E$2,Q74)),MAX($P$1:P73)+1,0)","v":0},null,{"$f":"IFERROR(VLOOKUP(ROWS($R$3:R75),$P$2:$Q$100,2,0),\"\")","v":""}]
[null,null,null,null,null,null,null,null,null,null,null,null,null,null,null,{"$f":"IF(ISNUMBER(SEARCH($E$2,Q75)),MAX($P$1:P74)+1,0)","v":0},null,{"$f":"IFERROR(VLOOKUP(ROWS($R$3:R76),$P$2:$Q$100,2,0),\"\")","v":""}]
[null,null,null,null,null,null,null,null,null,null,null,null,null,null,null,{"$f":"IF(ISNUMBER(SEARCH($E$2,Q76)),MAX($P$1:P75)+1,0)","v":0},null,{"$f":"IFERROR(VLOOKUP(ROWS($R$3:R77),$P$2:$Q$100,2,0),\"\")","v":""}]
[null,null,null,null,null,null,null,null,null,null,null,null,null,null,null,{"$f":"IF(ISNUMBER(SEARCH($E$2,Q77)),MAX($P$1:P76)+1,0)","v":0},null,{"$f":"IFERROR(VLOOKUP(ROWS($R$3:R78),$P$2:$Q$100,2,0),\"\")","v":""}]
[null,null,null,null,null,null,null,null,null,null,null,null,null,null,null,{"$f":"IF(ISNUMBER(SEARCH($E$2,Q78)),MAX($P$1:P77)+1,0)","v":0},null,{"$f":"IFERROR(VLOOKUP(ROWS($R$3:R79),$P$2:$Q$100,2,0),\"\")","v":""}]
[null,null,null,null,null,null,null,null,null,null,null,null,null,null,null,{"$f":"IF(ISNUMBER(SEARCH($E$2,Q79)),MAX($P$1:P78)+1,0)","v":0},null,{"$f":"IFERROR(VLOOKUP(ROWS($R$3:R80),$P$2:$Q$100,2,0),\"\")","v":""}]
[null,null,null,null,null,null,null,null,null,null,null,null,null,null,null,{"$f":"IF(ISNUMBER(SEARCH($E$2,Q80)),MAX($P$1:P79)+1,0)","v":0},null,{"$f":"IFERROR(VLOOKUP(ROWS($R$3:R81),$P$2:$Q$100,2,0),\"\")","v":""}]
[null,null,null,null,null,null,null,null,null,null,null,null,null,null,null,{"$f":"IF(ISNUMBER(SEARCH($E$2,Q81)),MAX($P$1:P80)+1,0)","v":0},null,{"$f":"IFERROR(VLOOKUP(ROWS($R$3:R82),$P$2:$Q$100,2,0),\"\")","v":""}]
[null,null,null,null,null,null,null,null,null,null,null,null,null,null,null,{"$f":"IF(ISNUMBER(SEARCH($E$2,Q82)),MAX($P$1:P81)+1,0)","v":0},null,{"$f":"IFERROR(VLOOKUP(ROWS($R$3:R83),$P$2:$Q$100,2,0),\"\")","v":""}]
[null,null,null,null,null,null,null,null,null,null,null,null,null,null,null,{"$f":"IF(ISNUMBER(SEARCH($E$2,Q83)),MAX($P$1:P82)+1,0)","v":0},null,{"$f":"IFERROR(VLOOKUP(ROWS($R$3:R84),$P$2:$Q$100,2,0),\"\")","v":""}]
[null,null,null,null,null,null,null,null,null,null,null,null,null,null,null,{"$f":"IF(ISNUMBER(SEARCH($E$2,Q84)),MAX($P$1:P83)+1,0)","v":0},null,{"$f":"IFERROR(VLOOKUP(ROWS($R$3:R85),$P$2:$Q$100,2,0),\"\")","v":""}]
[null,null,null,null,null,null,null,null,null,null,null,null,null,null,null,{"$f":"IF(ISNUMBER(SEARCH($E$2,Q85)),MAX($P$1:P84)+1,0)","v":0},null,{"$f":"IFERROR(VLOOKUP(ROWS($R$3:R86),$P$2:$Q$100,2,0),\"\")","v":""}]
[null,null,null,null,null,null,null,null,null,null,null,null,null,null,null,{"$f":"IF(ISNUMBER(SEARCH($E$2,Q86)),MAX($P$1:P85)+1,0)","v":0},null,{"$f":"IFERROR(VLOOKUP(ROWS($R$3:R87),$P$2:$Q$100,2,0),\"\")","v":""}]
[null,null,null,null,null,null,null,null,null,null,null,null,null,null,null,{"$f":"IF(ISNUMBER(SEARCH($E$2,Q87)),MAX($P$1:P86)+1,0)","v":0},null,{"$f":"IFERROR(VLOOKUP(ROWS($R$3:R88),$P$2:$Q$100,2,0),\"\")","v":""}]
[null,null,null,null,null,null,null,null,null,null,null,null,null,null,null,{"$f":"IF(ISNUMBER(SEARCH($E$2,Q88)),MAX($P$1:P87)+1,0)","v":0},null,{"$f":"IFERROR(VLOOKUP(ROWS($R$3:R89),$P$2:$Q$100,2,0),\"\")","v":""}]
[null,null,null,null,null,null,null,null,null,null,null,null,null,null,null,{"$f":"IF(ISNUMBER(SEARCH($E$2,Q89)),MAX($P$1:P88)+1,0)","v":0},null,{"$f":"IFERROR(VLOOKUP(ROWS($R$3:R90),$P$2:$Q$100,2,0),\"\")","v":""}]
[null,null,null,null,null,null,null,null,null,null,null,null,null,null,null,{"$f":"IF(ISNUMBER(SEARCH($E$2,Q90)),MAX($P$1:P89)+1,0)","v":0},null,{"$f":"IFERROR(VLOOKUP(ROWS($R$3:R91),$P$2:$Q$100,2,0),\"\")","v":""}]
[null,null,null,null,null,null,null,null,null,null,null,null,null,null,null,{"$f":"IF(ISNUMBER(SEARCH($E$2,Q91)),MAX($P$1:P90)+1,0)","v":0},null,{"$f":"IFERROR(VLOOKUP(ROWS($R$3:R92),$P$2:$Q$100,2,0),\"\")","v":""}]
[null,null,null,null,null,null,null,null,null,null,null,null,null,null,null,{"$f":"IF(ISNUMBER(SEARCH($E$2,Q92)),MAX($P$1:P91)+1,0)","v":0},null,{"$f":"IFERROR(VLOOKUP(ROWS($R$3:R93),$P$2:$Q$100,2,0),\"\")","v":""}]
[null,null,null,null,null,null,null,null,null,null,null,null,null,null,null,{"$f":"IF(ISNUMBER(SEARCH($E$2,Q93)),MAX($P$1:P92)+1,0)","v":0},null,{"$f":"IFERROR(VLOOKUP(ROWS($R$3:R94),$P$2:$Q$100,2,0),\"\")","v":""}]
[null,null,null,null,null,null,null,null,null,null,null,null,null,null,null,{"$f":"IF(ISNUMBER(SEARCH($E$2,Q94)),MAX($P$1:P93)+1,0)","v":0},null,{"$f":"IFERROR(VLOOKUP(ROWS($R$3:R95),$P$2:$Q$100,2,0),\"\")","v":""}]
[null,null,null,null,null,null,null,null,null,null,null,null,null,null,null,{"$f":"IF(ISNUMBER(SEARCH($E$2,Q95)),MAX($P$1:P94)+1,0)","v":0},null,{"$f":"IFERROR(VLOOKUP(ROWS($R$3:R96),$P$2:$Q$100,2,0),\"\")","v":""}]
[null,null,null,null,null,null,null,null,null,null,null,null,null,null,null,{"$f":"IF(ISNUMBER(SEARCH($E$2,Q96)),MAX($P$1:P95)+1,0)","v":0},null,{"$f":"IFERROR(VLOOKUP(ROWS($R$3:R97),$P$2:$Q$100,2,0),\"\")","v":""}]
[null,null,null,null,null,null,null,null,null,null,null,null,null,null,null,{"$f":"IF(ISNUMBER(SEARCH($E$2,Q97)),MAX($P$1:P96)+1,0)","v":0},null,{"$f":"IFERROR(VLOOKUP(ROWS($R$3:R98),$P$2:$Q$100,2,0),\"\")","v":""}]
[null,null,null,null,null,null,null,null,null,null,null,null,null,null,null,{"$f":"IF(ISNUMBER(SEARCH($E$2,Q98)),MAX($P$1:P97)+1,0)","v":0},null,{"$f":"IFERROR(VLOOKUP(ROWS($R$3:R99),$P$2:$Q$100,2,0),\"\")","v":""}]
[null,null,null,null,null,null,null,null,null,null,null,null,null,null,null,{"$f":"IF(ISNUMBER(SEARCH($E$2,Q99)),MAX($P$1:P98)+1,0)","v":0},null,{"$f":"IFERROR(VLOOKUP(ROWS($R$3:R100),$P$2:$Q$100,2,0),\"\")","v":""}]
[null,null,null,null,null,null,null,null,null,null,null,null,null,null,null,{"$f":"IF(ISNUMBER(SEARCH($E$2,Q100)),MAX($P$1:P99)+1,0)","v":0},null,{"$f":"IFERROR(VLOOKUP(ROWS($R$3:R101),$P$2:$Q$100,2,0),\"\")","v":""}]